{"text_format":"1","workbook":"xlsx","n_sheets":3,"sheets":["Auswahl","Methoden","Hilfstabellen"],"not_rendered":{"charts":0,"images":0,"macros":1,"external_links":0,"defined_names":5,"comments":1,"pivot_tables":0},"unopened":[],"bounds":{"document_bytes":16777216,"sheet_cells":100000,"rows_first":2000,"rows_last":500,"rows_between":2000,"halvings":0,"cell_chars":16384,"cell_head_chars":4096},"cells_cut":0,"cells_raw":0,"read":"whole","date_system":"1900"}

{"sheet":"Auswahl","index":0,"n_rows":24,"n_cols":8,"rows_kept":24,"cut":false,"hidden":false,"merged":[[1,0,1,1]]}
["Anwendung:",null,null,null,null,"Beispielaufbau Doppelstunde",null,"Erstellt von Dominik Dallwitz-Wegner"]
["1. Trainingsziel auswählen",null,null,null,null,"Begrüßung, Glücksrunde",null,"Danke an alle Mitwirkenden - vor allem an die SinnStifter"]
["2. Button \"Methoden aktualisieren\" drücken",null,null,null,null,"Einführung",null,"Fragen bitte an: info@gluecksstifter.de"]
["bitte auf diesem Blatt sonst nichts ändern",null,null,null,null,"Methode 1"]
["für Erweiterungen: Blatt \"Methoden\"",null,null,null,null,"Methode 2"]
[null,null,null,null,null,"Reflexion"]
["Trainingsziel",null,null,"Kriterium",null,"Abschlussritual"]
["Gruppenenergie \nstärken",null,null,">0"]
[]
["Methoden","Modul2","Modul","Kriterium"]
["Antreiber Modell",2,"Träume und Lebensmotive",26]
["Balance Kreis","E","Energizer",19]
["Eierfall",2,"Träume und Lebensmotive",8]
["Gruppenstatue",2,"Träume und Lebensmotive",8]
["Ha Ho Za (Samurai)",3,"Leben bewegen",19]
["Ich bin ein Baum",3,"Leben bewegen",8]
["Klatsch Kreis","E","Energizer",22]
["Projektphasen",5,"Abenteuer Alltag",8]
["Rotes Band (Systemarbeit)",1,"Freude am Leben",8]
["Rubikonüberquerung",2,"Träume und Lebensmotive",8]
["Schwebender Ball",2,"Träume und Lebensmotive",8]
["Seilschaft",2,"Träume und Lebensmotive",8]
["Stockkampf",3,"Leben bewegen",31]
["Szenisches Spielen (Theaterpädagogik)",3,"Leben bewegen",8]

{"sheet":"Methoden","index":1,"n_rows":126,"n_cols":32,"rows_kept":126,"cut":false,"hidden":false,"merged":[]}
["Methoden","Modul2","Modul","Kriterium","Achtsamkeit","Dankbarkeit","Emotionen wahrnehmen und steuern","Empathie-Fähigkeit","Energetisieren","Entscheiden","Fehlerkultur","Gruppenenergie \nstärken","Haltung ändern","Handlungsziele","Kennenlernen","Kommunikation","Konflikte lösen","Kreativität fördern","Lösungsorientierung","Natur wahrnehmen","Ressourcen-Arbeit","Selbstwirksamkeit stärken","Stärken stärken","Vertrauen schaffen","Visionen und Herzenswunsch entwickeln","Werte entwickeln","Wertschätzung leben","Ziele erreichen","Feedback","Spalte4","Alle",9876]
["1 bis 21",4,{"$f":"VLOOKUP(B2,Hilfstabellen!$A$1:$B$7,2)","v":"Gestaltungspotentiale nutzen"},{"$f":"SEARCH(Suchkriterium,AE2)","v":{"$error":"#VALUE!"}},"Achtsamkeit",null,null,null,null,null,null,null,null,null,null,null,null,null,null,null,null,null,null,null,null,null,null,null,null,null,{"$f":"CONCATENATE(E2,\" \",F2,\" \",G2,\" \",H2,\" \",I2,\" \",J2,\" \",K2,\" \",L2,\" \",M2,\" \",N2,\" \",O2,\" \",P2,\" \",Q2,\" \",R2,\" \",S2,\" \",T2,\" \",U2,\" \",V2,\" \",W2,\" \",X2,\" \",Y2,\" \",Z2,\" \",AA2,\" \",AB2,\" \",AC2,\" \",AD2)","v":"Achtsamkeit                         "}]
["24 Charakterstärken",1,{"$f":"VLOOKUP(B3,Hilfstabellen!$A$1:$B$7,2)","v":"Freude am Leben"},{"$f":"SEARCH(Suchkriterium,AE3)","v":{"$error":"#VALUE!"}},null,null,null,null,null,null,null,null,"Haltung ändern",null,null,null,null,null,null,null,"Ressourcen-Arbeit",null,"Stärken stärken",null,null,"Werte entwickeln",null,null,null,null,"        Haltung ändern        Ressourcen-Arbeit  Stärken stärken   Werte entwickeln    "]
["5 Bälle","E",{"$f":"VLOOKUP(B4,Hilfstabellen!$A$1:$B$7,2)","v":"Energizer"},8,null,null,null,null,null,null,null,"Gruppenenergie \nstärken",null,null,"Kennenlernen",null,null,null,null,null,null,null,null,null,null,null,null,null,null,null,"       Gruppenenergie \nstärken   Kennenlernen               "]
["Active Constructive",1,{"$f":"VLOOKUP(B5,Hilfstabellen!$A$1:$B$7,2)","v":"Freude am Leben"},{"$error":"#VALUE!"},null,null,null,null,null,null,null,null,null,null,null,"Kommunikation","Konflikte lösen",null,null,null,null,null,null,null,null,null,null,null,null,null,"           Kommunikation Konflikte lösen             "]
["Aikido",3,{"$f":"VLOOKUP(B6,Hilfstabellen!$A$1:$B$7,2)","v":"Leben bewegen"},{"$error":"#VALUE!"},"Achtsamkeit",null,null,null,null,null,null,null,null,null,null,null,"Konflikte lösen",null,null,null,null,null,null,null,null,null,null,null,null,null,"Achtsamkeit            Konflikte lösen             "]
["Antreiber Modell",2,{"$f":"VLOOKUP(B7,Hilfstabellen!$A$1:$B$7,2)","v":"Träume und Lebensmotive"},26,null,null,null,"Empathie-Fähigkeit",null,null,null,"Gruppenenergie \nstärken",null,null,null,null,"Konflikte lösen",null,null,null,"Ressourcen-Arbeit","Selbstwirksamkeit stärken",null,null,"Visionen und Herzenswunsch entwickeln",null,null,null,null,null,"   Empathie-Fähigkeit    Gruppenenergie \nstärken     Konflikte lösen    Ressourcen-Arbeit Selbstwirksamkeit stärken   Visionen und Herzenswunsch entwickeln     "]
["Atemtechniken",6,{"$f":"VLOOKUP(B8,Hilfstabellen!$A$1:$B$7,2)","v":"Seelisches Wohlbefinden"},{"$error":"#VALUE!"},"Achtsamkeit",null,"Emotionen wahrnehmen und steuern",null,null,null,null,null,null,null,null,null,null,null,null,null,null,null,null,null,null,null,null,null,null,null,"Achtsamkeit  Emotionen wahrnehmen und steuern                       "]
["Autowaschanlage",3,{"$f":"VLOOKUP(B9,Hilfstabellen!$A$1:$B$7,2)","v":"Leben bewegen"},{"$error":"#VALUE!"},null,null,null,null,null,null,null,null,null,null,null,null,null,null,null,null,null,null,null,null,null,null,null,null,null,null,"                         "]
["Balance Kreis","E",{"$f":"VLOOKUP(B10,Hilfstabellen!$A$1:$B$7,2)","v":"Energizer"},19,"Achtsamkeit",null,null,null,null,null,null,"Gruppenenergie \nstärken",null,null,null,null,"Konflikte lösen",null,null,null,null,null,null,"Vertrauen schaffen",null,null,null,null,null,null,"Achtsamkeit       Gruppenenergie \nstärken     Konflikte lösen       Vertrauen schaffen      "]
["Balance Plattform (Systemarbeit)",1,{"$f":"VLOOKUP(B11,Hilfstabellen!$A$1:$B$7,2)","v":"Freude am Leben"},19,"Achtsamkeit",null,null,null,null,null,null,"Gruppenenergie \nstärken","Haltung ändern",null,null,"Kommunikation","Konflikte lösen",null,null,null,null,null,null,"Vertrauen schaffen",null,null,null,null,null,null,"Achtsamkeit       Gruppenenergie \nstärken Haltung ändern   Kommunikation Konflikte lösen       Vertrauen schaffen      "]
["Balkenlauf",2,{"$f":"VLOOKUP(B12,Hilfstabellen!$A$1:$B$7,2)","v":"Träume und Lebensmotive"},{"$error":"#VALUE!"},"Achtsamkeit",null,null,null,null,null,null,null,null,null,null,null,null,null,null,null,null,null,null,"Vertrauen schaffen",null,null,null,null,null,null,"Achtsamkeit                   Vertrauen schaffen      "]
["Benjamin Franklin Strategie",2,{"$f":"VLOOKUP(B13,Hilfstabellen!$A$1:$B$7,2)","v":"Träume und Lebensmotive"},{"$error":"#VALUE!"},null,null,null,null,null,null,null,null,null,null,null,null,null,null,null,null,null,null,null,null,null,"Werte entwickeln",null,null,null,null,"                     Werte entwickeln    "]
["Benjamin Franklin Werte-Tagebuch",2,{"$f":"VLOOKUP(B14,Hilfstabellen!$A$1:$B$7,2)","v":"Träume und Lebensmotive"},{"$error":"#VALUE!"},null,null,null,null,null,null,null,null,null,null,null,null,null,null,null,null,"Ressourcen-Arbeit",null,null,null,null,"Werte entwickeln",null,null,null,null,"                Ressourcen-Arbeit     Werte entwickeln    "]
["Benjamin Franklin Werte-Tugenden",2,{"$f":"VLOOKUP(B15,Hilfstabellen!$A$1:$B$7,2)","v":"Träume und Lebensmotive"},{"$error":"#VALUE!"},null,null,null,null,null,null,null,null,null,null,null,null,null,null,null,null,"Ressourcen-Arbeit",null,null,null,null,"Werte entwickeln",null,null,null,null,"                Ressourcen-Arbeit     Werte entwickeln    "]
["Bildhauer & Statue",4,{"$f":"VLOOKUP(B16,Hilfstabellen!$A$1:$B$7,2)","v":"Gestaltungspotentiale nutzen"},{"$error":"#VALUE!"},null,null,null,null,null,null,null,null,null,null,null,null,null,null,null,null,null,"Selbstwirksamkeit stärken",null,null,null,null,null,null,null,null,"                 Selbstwirksamkeit stärken        "]
["Billidibillidbop","E",{"$f":"VLOOKUP(B17,Hilfstabellen!$A$1:$B$7,2)","v":"Energizer"},{"$error":"#VALUE!"},null,null,null,null,"Energetisieren",null,null,null,null,null,null,null,null,null,null,null,null,null,null,null,null,null,null,null,null,null,"    Energetisieren                     "]
["Buchstaben bilden",2,{"$f":"VLOOKUP(B18,Hilfstabellen!$A$1:$B$7,2)","v":"Träume und Lebensmotive"},{"$error":"#VALUE!"},null,null,null,null,"Energetisieren",null,null,null,null,null,null,null,null,"Kreativität fördern",null,null,null,null,null,null,null,null,null,null,null,null,"    Energetisieren         Kreativität fördern            "]
["Charakterstärken",1,{"$f":"VLOOKUP(B19,Hilfstabellen!$A$1:$B$7,2)","v":"Freude am Leben"},{"$error":"#VALUE!"},null,null,null,null,null,null,null,null,null,null,null,null,null,null,null,null,"Ressourcen-Arbeit",null,"Stärken stärken",null,null,null,null,null,null,null,"                Ressourcen-Arbeit  Stärken stärken       "]
["Charakterstärken",1,{"$f":"VLOOKUP(B20,Hilfstabellen!$A$1:$B$7,2)","v":"Freude am Leben"},{"$error":"#VALUE!"},null,null,null,null,null,null,null,null,null,null,null,"Kommunikation",null,null,null,null,null,null,null,null,null,null,null,null,null,null,"           Kommunikation              "]
["Dankbarkeitsbrief",1,{"$f":"VLOOKUP(B21,Hilfstabellen!$A$1:$B$7,2)","v":"Freude am Leben"},{"$error":"#VALUE!"},null,"Dankbarkeit",null,null,null,null,null,null,null,null,null,null,null,null,null,null,null,null,null,null,null,null,"Wertschätzung leben",null,null,null," Dankbarkeit                     Wertschätzung leben   "]
["Dankbarkeitssteine",1,{"$f":"VLOOKUP(B22,Hilfstabellen!$A$1:$B$7,2)","v":"Freude am Leben"},{"$error":"#VALUE!"},null,"Dankbarkeit",null,null,null,null,null,null,null,null,null,null,null,null,null,null,null,null,null,null,null,null,"Wertschätzung leben",null,null,null," Dankbarkeit                     Wertschätzung leben   "]
["Das kleine Glück",1,{"$f":"VLOOKUP(B23,Hilfstabellen!$A$1:$B$7,2)","v":"Freude am Leben"},{"$error":"#VALUE!"},"Achtsamkeit",null,null,null,null,null,null,null,null,null,null,null,null,null,null,null,"Ressourcen-Arbeit",null,"Stärken stärken",null,null,null,null,null,null,null,"Achtsamkeit                Ressourcen-Arbeit  Stärken stärken       "]
["Das rote Sofa","E",{"$f":"VLOOKUP(B24,Hilfstabellen!$A$1:$B$7,2)","v":"Energizer"},{"$error":"#VALUE!"},null,null,null,null,"Energetisieren",null,null,null,null,null,null,null,null,null,null,null,null,null,null,null,null,null,null,null,null,null,"    Energetisieren                     "]
["Deutlich sprechen",3,{"$f":"VLOOKUP(B25,Hilfstabellen!$A$1:$B$7,2)","v":"Leben bewegen"},{"$error":"#VALUE!"},null,null,null,null,null,null,null,null,null,null,null,"Kommunikation",null,null,null,null,null,null,null,null,null,null,null,null,null,null,"           Kommunikation              "]
["Deutlich sprechen",4,{"$f":"VLOOKUP(B26,Hilfstabellen!$A$1:$B$7,2)","v":"Gestaltungspotentiale nutzen"},{"$error":"#VALUE!"},null,null,null,null,null,null,null,null,null,null,null,"Kommunikation",null,null,null,null,null,null,null,null,null,null,null,null,null,null,"           Kommunikation              "]
["Die Riesen in mir",1,{"$f":"VLOOKUP(B27,Hilfstabellen!$A$1:$B$7,2)","v":"Freude am Leben"},{"$error":"#VALUE!"},null,null,null,null,null,null,null,null,null,null,null,null,null,null,null,null,null,null,"Stärken stärken",null,null,null,null,null,null,null,"                  Stärken stärken       "]
["Eierfall",2,{"$f":"VLOOKUP(B28,Hilfstabellen!$A$1:$B$7,2)","v":"Träume und Lebensmotive"},20,null,null,null,null,null,null,"Fehlerkultur","Gruppenenergie \nstärken",null,null,null,null,null,null,"Lösungsorientierung",null,null,null,"Stärken stärken",null,null,null,null,null,null,null,"      Fehlerkultur Gruppenenergie \nstärken       Lösungsorientierung    Stärken stärken       "]
["Emotions Memory",1,{"$f":"VLOOKUP(B29,Hilfstabellen!$A$1:$B$7,2)","v":"Freude am Leben"},{"$error":"#VALUE!"},null,null,"Emotionen wahrnehmen und steuern","Empathie-Fähigkeit",null,null,null,null,null,null,null,"Kommunikation",null,null,null,null,null,null,null,null,null,null,null,null,null,null,"  Emotionen wahrnehmen und steuern Empathie-Fähigkeit        Kommunikation              "]
["Energie Ball",2,{"$f":"VLOOKUP(B30,Hilfstabellen!$A$1:$B$7,2)","v":"Träume und Lebensmotive"},{"$error":"#VALUE!"},null,null,null,null,"Energetisieren",null,null,null,null,null,null,null,null,null,null,null,null,null,null,null,null,null,null,null,null,null,"    Energetisieren                     "]
["Entscheidungen ausloten",4,{"$f":"VLOOKUP(B31,Hilfstabellen!$A$1:$B$7,2)","v":"Gestaltungspotentiale nutzen"},{"$error":"#VALUE!"},null,null,null,null,null,"Entscheiden",null,null,null,"Handlungsziele",null,null,null,null,null,null,null,null,null,null,null,null,null,"Ziele erreichen",null,null,"     Entscheiden    Handlungsziele              Ziele erreichen  "]
["Erste Ansprache",3,{"$f":"VLOOKUP(B32,Hilfstabellen!$A$1:$B$7,2)","v":"Leben bewegen"},{"$error":"#VALUE!"},null,null,null,null,null,null,null,null,null,null,null,null,null,null,null,null,null,null,"Stärken stärken",null,null,null,null,null,null,null,"                  Stärken stärken       "]
["Feind-Beschützer",3,{"$f":"VLOOKUP(B33,Hilfstabellen!$A$1:$B$7,2)","v":"Leben bewegen"},{"$error":"#VALUE!"},"Achtsamkeit",null,null,null,null,null,null,null,null,null,null,null,null,null,null,null,null,null,null,null,null,null,null,null,null,null,"Achtsamkeit                         "]
["Finde deinen Stein",6,{"$f":"VLOOKUP(B34,Hilfstabellen!$A$1:$B$7,2)","v":"Seelisches Wohlbefinden"},{"$f":"SEARCH(Suchkriterium,AE34)","v":{"$error":"#VALUE!"}},null,null,null,null,null,null,null,null,null,null,null,null,null,null,null,"Natur wahrnehmen",null,null,null,null,null,null,null,null,null,null,"               Natur wahrnehmen          "]
["Flick-Flack","E",{"$f":"VLOOKUP(B35,Hilfstabellen!$A$1:$B$7,2)","v":"Energizer"},{"$error":"#VALUE!"},null,null,null,null,"Energetisieren",null,"Fehlerkultur",null,null,null,"Kennenlernen",null,null,null,null,null,null,null,null,null,null,null,null,null,null,null,"    Energetisieren  Fehlerkultur    Kennenlernen               "]
["Flow-Stärken Karte",1,{"$f":"VLOOKUP(B36,Hilfstabellen!$A$1:$B$7,2)","v":"Freude am Leben"},{"$f":"SEARCH(Suchkriterium,AE36)","v":{"$error":"#VALUE!"}},null,null,null,"Empathie-Fähigkeit",null,null,"Fehlerkultur",null,null,null,null,"Kommunikation",null,null,null,null,"Ressourcen-Arbeit","Selbstwirksamkeit stärken","Stärken stärken",null,null,null,"Wertschätzung leben",null,null,null,"   Empathie-Fähigkeit   Fehlerkultur     Kommunikation     Ressourcen-Arbeit Selbstwirksamkeit stärken Stärken stärken    Wertschätzung leben   "]
["Führen lassen",1,{"$f":"VLOOKUP(B37,Hilfstabellen!$A$1:$B$7,2)","v":"Freude am Leben"},{"$error":"#VALUE!"},"Achtsamkeit",null,null,null,null,null,null,null,null,null,null,null,null,null,null,null,null,null,null,"Vertrauen schaffen",null,null,null,null,null,null,"Achtsamkeit                   Vertrauen schaffen      "]
["Gang imitieren",3,{"$f":"VLOOKUP(B38,Hilfstabellen!$A$1:$B$7,2)","v":"Leben bewegen"},{"$error":"#VALUE!"},"Achtsamkeit",null,null,null,null,null,null,null,null,null,null,null,null,null,null,null,null,null,null,null,null,null,null,null,null,null,"Achtsamkeit                         "]
["Glückliche Entscheidungen",4,{"$f":"VLOOKUP(B39,Hilfstabellen!$A$1:$B$7,2)","v":"Gestaltungspotentiale nutzen"},{"$error":"#VALUE!"},null,null,null,null,null,"Entscheiden",null,null,null,null,null,null,null,null,null,null,null,null,null,null,null,null,null,"Ziele erreichen",null,null,"     Entscheiden                  Ziele erreichen  "]
["Gordischer Knoten",1,{"$f":"VLOOKUP(B40,Hilfstabellen!$A$1:$B$7,2)","v":"Freude am Leben"},8,null,null,null,null,null,null,null,"Gruppenenergie \nstärken",null,null,"Kennenlernen",null,null,null,null,null,null,null,null,null,null,null,null,null,null,null,"       Gruppenenergie \nstärken   Kennenlernen               "]
["Gruppendynamik",5,{"$f":"VLOOKUP(B41,Hilfstabellen!$A$1:$B$7,2)","v":"Abenteuer Alltag"},{"$error":"#VALUE!"},null,null,null,null,null,null,null,null,null,null,null,null,"Konflikte lösen",null,null,null,null,null,null,null,null,null,null,null,null,null,"            Konflikte lösen             "]
["Gruppenstatue",2,{"$f":"VLOOKUP(B42,Hilfstabellen!$A$1:$B$7,2)","v":"Träume und Lebensmotive"},8,null,null,null,null,null,null,null,"Gruppenenergie \nstärken",null,null,null,null,null,null,null,null,null,null,null,null,null,null,null,null,null,null,"       Gruppenenergie \nstärken                  "]
["Guter Ruf",2,{"$f":"VLOOKUP(B43,Hilfstabellen!$A$1:$B$7,2)","v":"Träume und Lebensmotive"},{"$error":"#VALUE!"},null,null,null,null,"Energetisieren",null,null,null,null,null,"Kennenlernen",null,null,null,null,null,null,null,null,null,null,null,null,null,null,null,"    Energetisieren      Kennenlernen               "]
["Ha Ho Za (Samurai)",3,{"$f":"VLOOKUP(B44,Hilfstabellen!$A$1:$B$7,2)","v":"Leben bewegen"},19,"Achtsamkeit",null,null,null,null,null,null,"Gruppenenergie \nstärken",null,null,null,null,null,null,null,null,null,null,null,null,null,null,null,null,null,null,"Achtsamkeit       Gruppenenergie \nstärken                  "]
["Haltungsziel-Bild",2,{"$f":"VLOOKUP(B45,Hilfstabellen!$A$1:$B$7,2)","v":"Träume und Lebensmotive"},{"$error":"#VALUE!"},null,null,null,null,null,null,null,null,"Haltung ändern",null,null,null,null,null,null,null,"Ressourcen-Arbeit",null,null,null,null,null,null,null,null,null,"        Haltung ändern        Ressourcen-Arbeit         "]
["Halungsziel-Bild Skalenlauf",2,{"$f":"VLOOKUP(B46,Hilfstabellen!$A$1:$B$7,2)","v":"Träume und Lebensmotive"},{"$error":"#VALUE!"},null,null,null,null,null,null,null,null,"Haltung ändern",null,null,null,null,null,"Lösungsorientierung",null,null,null,"Stärken stärken",null,null,null,null,null,null,null,"        Haltung ändern      Lösungsorientierung    Stärken stärken       "]
["HKT - Baum",2,{"$f":"VLOOKUP(B47,Hilfstabellen!$A$1:$B$7,2)","v":"Träume und Lebensmotive"},{"$error":"#VALUE!"},null,null,null,null,null,null,null,null,null,null,null,null,null,null,null,null,null,"Selbstwirksamkeit stärken",null,null,null,null,null,null,null,null,"                 Selbstwirksamkeit stärken        "]
["HKT - Konzentration",2,{"$f":"VLOOKUP(B48,Hilfstabellen!$A$1:$B$7,2)","v":"Träume und Lebensmotive"},{"$error":"#VALUE!"},null,null,null,null,null,null,null,null,null,null,null,null,null,null,null,null,null,"Selbstwirksamkeit stärken",null,null,null,null,null,null,null,null,"                 Selbstwirksamkeit stärken        "]
["HKT - Symbole",2,{"$f":"VLOOKUP(B49,Hilfstabellen!$A$1:$B$7,2)","v":"Träume und Lebensmotive"},{"$error":"#VALUE!"},null,null,null,null,null,null,null,null,null,null,null,null,null,null,null,null,null,"Selbstwirksamkeit stärken",null,null,null,null,null,null,null,null,"                 Selbstwirksamkeit stärken        "]
["Ich bin ein Baum",3,{"$f":"VLOOKUP(B50,Hilfstabellen!$A$1:$B$7,2)","v":"Leben bewegen"},8,null,null,null,null,null,null,null,"Gruppenenergie \nstärken",null,null,null,null,null,null,null,null,null,null,null,null,null,null,null,null,null,null,"       Gruppenenergie \nstärken                  "]
["Ich bin zu spät",4,{"$f":"VLOOKUP(B51,Hilfstabellen!$A$1:$B$7,2)","v":"Gestaltungspotentiale nutzen"},{"$error":"#VALUE!"},null,null,null,null,null,null,null,null,"Haltung ändern",null,null,null,"Konflikte lösen",null,null,null,null,null,null,null,null,null,null,null,null,null,"        Haltung ändern    Konflikte lösen             "]
["Jeux Dramatique",5,{"$f":"VLOOKUP(B52,Hilfstabellen!$A$1:$B$7,2)","v":"Abenteuer Alltag"},{"$error":"#VALUE!"},null,null,null,null,null,null,null,null,null,null,null,null,null,"Kreativität fördern",null,null,null,null,null,"Vertrauen schaffen",null,null,null,null,null,null,"             Kreativität fördern      Vertrauen schaffen      "]
["Johari Fenster",1,{"$f":"VLOOKUP(B53,Hilfstabellen!$A$1:$B$7,2)","v":"Freude am Leben"},{"$error":"#VALUE!"},null,null,null,null,null,null,null,null,"Haltung ändern",null,null,null,null,null,null,null,null,null,null,null,null,null,null,null,null,null,"        Haltung ändern                 "]
["Keksdose",3,{"$f":"VLOOKUP(B54,Hilfstabellen!$A$1:$B$7,2)","v":"Leben bewegen"},{"$error":"#VALUE!"},null,null,null,null,null,null,null,null,null,null,null,"Kommunikation",null,null,null,null,null,null,null,null,null,null,null,null,null,null,"           Kommunikation              "]
["Kevin allein zu Hause","E",{"$f":"VLOOKUP(B55,Hilfstabellen!$A$1:$B$7,2)","v":"Energizer"},{"$error":"#VALUE!"},null,null,null,null,"Energetisieren",null,null,null,null,null,null,null,null,null,null,null,null,null,null,null,null,null,null,null,null,null,"    Energetisieren                     "]
["Klangwald",6,{"$f":"VLOOKUP(B56,Hilfstabellen!$A$1:$B$7,2)","v":"Seelisches Wohlbefinden"},{"$error":"#VALUE!"},null,null,null,null,null,null,null,null,null,null,null,null,null,null,null,"Natur wahrnehmen",null,null,null,null,null,null,null,null,null,null,"               Natur wahrnehmen          "]
["Klatsch Battle","E",{"$f":"VLOOKUP(B57,Hilfstabellen!$A$1:$B$7,2)","v":"Energizer"},{"$error":"#VALUE!"},null,null,null,null,"Energetisieren",null,"Fehlerkultur",null,null,null,null,null,null,null,null,null,null,null,null,null,null,null,null,null,null,null,"    Energetisieren  Fehlerkultur                   "]
["Klatsch Kreis","E",{"$f":"VLOOKUP(B58,Hilfstabellen!$A$1:$B$7,2)","v":"Energizer"},22,null,null,null,null,"Energetisieren",null,null,"Gruppenenergie \nstärken",null,null,null,null,null,null,null,null,null,null,null,null,null,null,null,null,null,null,"    Energetisieren   Gruppenenergie \nstärken                  "]
["Kommunikationsstile",5,{"$f":"VLOOKUP(B59,Hilfstabellen!$A$1:$B$7,2)","v":"Abenteuer Alltag"},{"$error":"#VALUE!"},null,null,null,null,null,null,null,null,null,null,null,"Kommunikation","Konflikte lösen",null,null,null,null,null,null,null,null,null,null,null,null,null,"           Kommunikation Konflikte lösen             "]
["Körperteilgehen",3,{"$f":"VLOOKUP(B60,Hilfstabellen!$A$1:$B$7,2)","v":"Leben bewegen"},{"$error":"#VALUE!"},"Achtsamkeit",null,null,null,null,null,null,null,null,null,null,null,null,null,null,null,null,null,null,null,null,null,null,null,null,null,"Achtsamkeit                         "]
["Kreisübungen",3,{"$f":"VLOOKUP(B61,Hilfstabellen!$A$1:$B$7,2)","v":"Leben bewegen"},{"$error":"#VALUE!"},"Achtsamkeit",null,"Emotionen wahrnehmen und steuern","Empathie-Fähigkeit",null,null,null,null,null,null,null,null,null,null,null,null,null,null,null,null,null,null,null,null,null,null,"Achtsamkeit  Emotionen wahrnehmen und steuern Empathie-Fähigkeit                      "]
["Landart Übungen",6,{"$f":"VLOOKUP(B62,Hilfstabellen!$A$1:$B$7,2)","v":"Seelisches Wohlbefinden"},{"$error":"#VALUE!"},"Achtsamkeit",null,null,null,null,null,null,null,null,null,null,null,null,null,null,null,null,null,null,null,null,null,null,null,null,null,"Achtsamkeit                         "]
["Lebensweg",1,{"$f":"VLOOKUP(B63,Hilfstabellen!$A$1:$B$7,2)","v":"Freude am Leben"},{"$error":"#VALUE!"},null,"Dankbarkeit",null,null,null,null,null,null,null,null,null,null,null,null,null,null,null,null,null,null,null,null,null,null,null,null," Dankbarkeit                        "]
["Lieblingsspeise",2,{"$f":"VLOOKUP(B64,Hilfstabellen!$A$1:$B$7,2)","v":"Träume und Lebensmotive"},{"$error":"#VALUE!"},null,null,null,null,null,null,null,null,null,null,"Kennenlernen",null,null,null,null,null,null,null,null,null,null,null,null,null,null,null,"          Kennenlernen               "]
["Lösungszeitreise",2,{"$f":"VLOOKUP(B65,Hilfstabellen!$A$1:$B$7,2)","v":"Träume und Lebensmotive"},{"$error":"#VALUE!"},null,null,null,null,null,null,null,null,null,"Handlungsziele",null,null,null,null,null,null,null,null,null,null,null,null,null,null,null,null,"         Handlungsziele                "]
["Markt der schlechten Eigenschaften",1,{"$f":"VLOOKUP(B66,Hilfstabellen!$A$1:$B$7,2)","v":"Freude am Leben"},{"$f":"SEARCH(Suchkriterium,AE66)","v":{"$error":"#VALUE!"}},null,null,null,null,null,null,"Fehlerkultur",null,"Haltung ändern",null,null,null,null,null,null,null,"Ressourcen-Arbeit",null,"Stärken stärken",null,null,null,"Wertschätzung leben",null,null,null,{"$f":"CONCATENATE(E66,\" \",F66,\" \",G66,\" \",H66,\" \",I66,\" \",J66,\" \",K66,\" \",L66,\" \",M66,\" \",N66,\" \",O66,\" \",P66,\" \",Q66,\" \",R66,\" \",S66,\" \",T66,\" \",U66,\" \",V66,\" \",W66,\" \",X66,\" \",Y66,\" \",Z66,\" \",AA66,\" \",AB66,\" \",AC66,\" \",AD66)","v":"      Fehlerkultur  Haltung ändern        Ressourcen-Arbeit  Stärken stärken    Wertschätzung leben   "}]
["Mein Glück in deinen Händen",1,{"$f":"VLOOKUP(B67,Hilfstabellen!$A$1:$B$7,2)","v":"Freude am Leben"},{"$error":"#VALUE!"},"Achtsamkeit",null,null,null,"Energetisieren",null,null,null,null,null,"Kennenlernen",null,null,null,null,null,null,null,null,"Vertrauen schaffen",null,null,"Wertschätzung leben",null,null,null,"Achtsamkeit    Energetisieren      Kennenlernen         Vertrauen schaffen   Wertschätzung leben   "]
["Mein Lebenskuchen",2,{"$f":"VLOOKUP(B68,Hilfstabellen!$A$1:$B$7,2)","v":"Träume und Lebensmotive"},{"$error":"#VALUE!"},null,null,null,null,null,null,null,null,null,null,null,null,null,null,null,null,null,null,null,null,"Visionen und Herzenswunsch entwickeln",null,null,null,null,null,"                    Visionen und Herzenswunsch entwickeln     "]
["Mein Standpunkt",2,{"$f":"VLOOKUP(B69,Hilfstabellen!$A$1:$B$7,2)","v":"Träume und Lebensmotive"},{"$error":"#VALUE!"},null,null,null,null,null,null,null,null,null,null,null,null,null,null,null,null,null,null,null,null,null,"Werte entwickeln",null,null,null,null,"                     Werte entwickeln    "]
["Mein-Dein-Unser Reich",1,{"$f":"VLOOKUP(B70,Hilfstabellen!$A$1:$B$7,2)","v":"Freude am Leben"},{"$error":"#VALUE!"},null,null,null,"Empathie-Fähigkeit",null,null,null,null,null,null,null,null,null,null,null,null,null,null,null,"Vertrauen schaffen",null,null,null,null,null,null,"   Empathie-Fähigkeit                Vertrauen schaffen      "]
["Meine Standpunkt-Wertekarte",2,{"$f":"VLOOKUP(B71,Hilfstabellen!$A$1:$B$7,2)","v":"Träume und Lebensmotive"},{"$error":"#VALUE!"},null,null,null,null,null,null,null,null,null,null,null,null,null,null,null,null,null,null,null,null,"Visionen und Herzenswunsch entwickeln","Werte entwickeln",null,null,null,null,"                    Visionen und Herzenswunsch entwickeln Werte entwickeln    "]
["Musikmalen",2,{"$f":"VLOOKUP(B72,Hilfstabellen!$A$1:$B$7,2)","v":"Träume und Lebensmotive"},{"$error":"#VALUE!"},null,null,null,null,null,null,null,null,null,null,null,null,null,"Kreativität fördern",null,null,null,null,null,null,null,null,null,null,null,null,"             Kreativität fördern            "]
["Namen-Geste-Echo",1,{"$f":"VLOOKUP(B73,Hilfstabellen!$A$1:$B$7,2)","v":"Freude am Leben"},{"$error":"#VALUE!"},null,null,null,null,null,null,null,null,null,null,"Kennenlernen",null,null,null,null,null,null,null,null,null,null,null,null,null,null,null,"          Kennenlernen               "]
["Namensbattle",1,{"$f":"VLOOKUP(B74,Hilfstabellen!$A$1:$B$7,2)","v":"Freude am Leben"},{"$error":"#VALUE!"},null,null,null,null,"Energetisieren",null,null,null,null,null,"Kennenlernen",null,null,null,null,null,null,null,null,null,null,null,null,null,null,null,"    Energetisieren      Kennenlernen               "]
["Omachio",2,{"$f":"VLOOKUP(B75,Hilfstabellen!$A$1:$B$7,2)","v":"Träume und Lebensmotive"},{"$error":"#VALUE!"},null,null,null,null,"Energetisieren",null,null,null,null,null,null,null,null,null,null,null,null,null,null,null,null,null,null,null,null,null,"    Energetisieren                     "]
["Postkartenspiel",1,{"$f":"VLOOKUP(B76,Hilfstabellen!$A$1:$B$7,2)","v":"Freude am Leben"},{"$error":"#VALUE!"},null,null,null,null,null,null,null,null,null,null,"Kennenlernen","Kommunikation",null,null,null,null,null,null,null,"Vertrauen schaffen",null,null,null,null,null,null,"          Kennenlernen Kommunikation        Vertrauen schaffen      "]
["Projektphasen",5,{"$f":"VLOOKUP(B77,Hilfstabellen!$A$1:$B$7,2)","v":"Abenteuer Alltag"},8,null,null,null,null,null,null,null,"Gruppenenergie \nstärken",null,null,null,"Kommunikation",null,null,null,null,null,null,null,null,null,null,null,null,null,null,"       Gruppenenergie \nstärken    Kommunikation              "]
["Raumlauf",3,{"$f":"VLOOKUP(B78,Hilfstabellen!$A$1:$B$7,2)","v":"Leben bewegen"},{"$error":"#VALUE!"},"Achtsamkeit",null,null,null,null,null,null,null,null,null,null,null,null,null,null,null,null,null,null,null,null,null,null,null,null,null,"Achtsamkeit                         "]
["Repräsentantenarbeit",4,{"$f":"VLOOKUP(B79,Hilfstabellen!$A$1:$B$7,2)","v":"Gestaltungspotentiale nutzen"},{"$error":"#VALUE!"},null,null,null,null,null,null,null,null,null,"Handlungsziele",null,"Kommunikation","Konflikte lösen",null,"Lösungsorientierung",null,"Ressourcen-Arbeit",null,null,null,null,null,null,"Ziele erreichen",null,null,"         Handlungsziele  Kommunikation Konflikte lösen  Lösungsorientierung  Ressourcen-Arbeit       Ziele erreichen  "]
["Rhythmus-Fée",2,{"$f":"VLOOKUP(B80,Hilfstabellen!$A$1:$B$7,2)","v":"Träume und Lebensmotive"},{"$error":"#VALUE!"},null,null,null,null,"Energetisieren",null,null,null,null,null,null,null,null,null,null,null,null,null,null,null,null,null,null,null,null,null,"    Energetisieren                     "]
["Rotes Band (Systemarbeit)",1,{"$f":"VLOOKUP(B81,Hilfstabellen!$A$1:$B$7,2)","v":"Freude am Leben"},8,null,null,null,null,null,null,null,"Gruppenenergie \nstärken",null,null,null,null,null,null,null,null,null,null,null,"Vertrauen schaffen",null,null,null,null,null,null,"       Gruppenenergie \nstärken            Vertrauen schaffen      "]
["Rubikonüberquerung",2,{"$f":"VLOOKUP(B82,Hilfstabellen!$A$1:$B$7,2)","v":"Träume und Lebensmotive"},8,null,null,null,null,null,null,null,"Gruppenenergie \nstärken",null,null,null,null,null,null,"Lösungsorientierung",null,null,null,null,null,null,null,null,null,null,null,"       Gruppenenergie \nstärken       Lösungsorientierung           "]
["Schatzkiste",6,{"$f":"VLOOKUP(B83,Hilfstabellen!$A$1:$B$7,2)","v":"Seelisches Wohlbefinden"},{"$error":"#VALUE!"},null,null,null,null,null,null,null,null,null,null,null,null,null,null,null,null,null,null,null,null,null,null,"Wertschätzung leben",null,null,null,"                      Wertschätzung leben   "]
["Schnipsen",2,{"$f":"VLOOKUP(B84,Hilfstabellen!$A$1:$B$7,2)","v":"Träume und Lebensmotive"},{"$error":"#VALUE!"},"Achtsamkeit",null,null,null,null,null,null,null,null,null,null,null,null,null,null,null,null,null,null,null,null,null,null,"Ziele erreichen",null,null,"Achtsamkeit                       Ziele erreichen  "]
["Schwankende Birke",2,{"$f":"VLOOKUP(B85,Hilfstabellen!$A$1:$B$7,2)","v":"Träume und Lebensmotive"},8,null,null,null,null,null,null,null,"Gruppenenergie \nstärken",null,null,null,null,null,null,null,null,null,null,null,"Vertrauen schaffen",null,null,null,null,null,null,"       Gruppenenergie \nstärken            Vertrauen schaffen      "]
["Schwebender Ball",2,{"$f":"VLOOKUP(B86,Hilfstabellen!$A$1:$B$7,2)","v":"Träume und Lebensmotive"},8,null,null,null,null,null,null,null,"Gruppenenergie \nstärken",null,null,null,null,"Konflikte lösen",null,"Lösungsorientierung",null,null,null,null,null,null,null,null,null,null,null,"       Gruppenenergie \nstärken     Konflikte lösen  Lösungsorientierung           "]
["Seilschaft",2,{"$f":"VLOOKUP(B87,Hilfstabellen!$A$1:$B$7,2)","v":"Träume und Lebensmotive"},8,null,null,null,null,null,null,null,"Gruppenenergie \nstärken",null,null,null,null,null,null,"Lösungsorientierung",null,"Ressourcen-Arbeit",null,null,null,null,null,null,null,null,null,"       Gruppenenergie \nstärken       Lösungsorientierung  Ressourcen-Arbeit         "]
["Sherlock Holmes",2,{"$f":"VLOOKUP(B88,Hilfstabellen!$A$1:$B$7,2)","v":"Träume und Lebensmotive"},{"$error":"#VALUE!"},"Achtsamkeit",null,null,null,null,null,null,null,null,null,null,null,null,null,null,null,null,null,null,null,null,null,null,null,null,null,"Achtsamkeit                         "]
["SMART",4,{"$f":"VLOOKUP(B89,Hilfstabellen!$A$1:$B$7,2)","v":"Gestaltungspotentiale nutzen"},{"$error":"#VALUE!"},null,null,null,null,null,"Entscheiden",null,null,null,"Handlungsziele",null,null,null,null,null,null,null,null,null,null,null,null,null,"Ziele erreichen",null,null,"     Entscheiden    Handlungsziele              Ziele erreichen  "]
["Stage Diving",2,{"$f":"VLOOKUP(B90,Hilfstabellen!$A$1:$B$7,2)","v":"Träume und Lebensmotive"},{"$error":"#VALUE!"},null,null,null,null,null,null,null,null,null,null,null,null,null,null,null,null,null,null,null,"Vertrauen schaffen",null,null,null,null,null,null,"                   Vertrauen schaffen      "]
["Stärken Ball",1,{"$f":"VLOOKUP(B91,Hilfstabellen!$A$1:$B$7,2)","v":"Freude am Leben"},{"$error":"#VALUE!"},null,null,null,null,null,null,null,null,null,null,null,null,null,null,null,null,null,"Selbstwirksamkeit stärken","Stärken stärken",null,null,null,null,null,null,null,"                 Selbstwirksamkeit stärken Stärken stärken       "]
["Status",3,{"$f":"VLOOKUP(B92,Hilfstabellen!$A$1:$B$7,2)","v":"Leben bewegen"},{"$error":"#VALUE!"},null,null,null,null,null,null,null,null,null,null,null,"Kommunikation","Konflikte lösen",null,null,null,null,null,null,null,null,null,null,null,null,null,"           Kommunikation Konflikte lösen             "]
["Stimmungssatz",3,{"$f":"VLOOKUP(B93,Hilfstabellen!$A$1:$B$7,2)","v":"Leben bewegen"},{"$error":"#VALUE!"},null,null,null,null,null,null,null,null,null,null,null,"Kommunikation",null,null,null,null,null,null,null,null,null,null,null,null,null,null,"           Kommunikation              "]
["Stockkampf",3,{"$f":"VLOOKUP(B94,Hilfstabellen!$A$1:$B$7,2)","v":"Leben bewegen"},31,"Achtsamkeit",null,null,null,null,null,"Fehlerkultur","Gruppenenergie \nstärken",null,null,null,null,"Konflikte lösen",null,"Lösungsorientierung",null,null,null,null,null,null,null,null,null,null,null,"Achtsamkeit      Fehlerkultur Gruppenenergie \nstärken     Konflikte lösen  Lösungsorientierung           "]
["Stop-Kontakt-Boden",3,{"$f":"VLOOKUP(B95,Hilfstabellen!$A$1:$B$7,2)","v":"Leben bewegen"},{"$error":"#VALUE!"},"Achtsamkeit",null,null,null,null,null,null,null,null,null,null,null,null,null,null,null,null,null,null,null,null,null,null,null,null,null,"Achtsamkeit                         "]
["System-Arbeit",1,{"$f":"VLOOKUP(B96,Hilfstabellen!$A$1:$B$7,2)","v":"Freude am Leben"},{"$error":"#VALUE!"},null,null,null,null,null,null,null,null,"Haltung ändern",null,null,null,null,null,null,null,null,null,null,null,null,null,null,null,null,null,"        Haltung ändern                 "]
["Systemische Fragetypen",1,{"$f":"VLOOKUP(B97,Hilfstabellen!$A$1:$B$7,2)","v":"Freude am Leben"},{"$error":"#VALUE!"},null,null,null,null,null,null,null,null,"Haltung ändern",null,null,null,null,null,"Lösungsorientierung",null,null,null,null,null,null,null,null,null,null,null,"        Haltung ändern      Lösungsorientierung           "]
["Szenisches Spielen (Theaterpädagogik)",3,{"$f":"VLOOKUP(B98,Hilfstabellen!$A$1:$B$7,2)","v":"Leben bewegen"},{"$f":"SEARCH(Suchkriterium,AE98)","v":8},null,null,null,null,null,null,null,"Gruppenenergie \nstärken",null,null,null,"Kommunikation","Konflikte lösen","Kreativität fördern",null,null,"Ressourcen-Arbeit","Selbstwirksamkeit stärken",null,"Vertrauen schaffen",null,null,null,null,null,null,"       Gruppenenergie \nstärken    Kommunikation Konflikte lösen Kreativität fördern   Ressourcen-Arbeit Selbstwirksamkeit stärken  Vertrauen schaffen      "]
["Topf und Deckel",2,{"$f":"VLOOKUP(B99,Hilfstabellen!$A$1:$B$7,2)","v":"Träume und Lebensmotive"},{"$error":"#VALUE!"},null,null,null,null,null,null,null,null,null,null,null,null,null,null,null,null,null,null,"Stärken stärken",null,null,null,null,null,null,null,"                  Stärken stärken       "]
["Träume werden wahr",4,{"$f":"VLOOKUP(B100,Hilfstabellen!$A$1:$B$7,2)","v":"Gestaltungspotentiale nutzen"},{"$error":"#VALUE!"},null,null,null,null,null,"Entscheiden",null,null,"Haltung ändern","Handlungsziele",null,null,null,null,"Lösungsorientierung",null,"Ressourcen-Arbeit",null,"Stärken stärken","Vertrauen schaffen","Visionen und Herzenswunsch entwickeln","Werte entwickeln",null,"Ziele erreichen",null,null,"     Entscheiden   Haltung ändern Handlungsziele     Lösungsorientierung  Ressourcen-Arbeit  Stärken stärken Vertrauen schaffen Visionen und Herzenswunsch entwickeln Werte entwickeln  Ziele erreichen  "]
["Vier Elemente",1,{"$f":"VLOOKUP(B101,Hilfstabellen!$A$1:$B$7,2)","v":"Freude am Leben"},{"$error":"#VALUE!"},null,null,null,null,null,null,null,null,null,null,null,null,null,null,null,null,"Ressourcen-Arbeit",null,null,null,null,null,null,null,null,null,"                Ressourcen-Arbeit         "]
["Warme Dusche",1,{"$f":"VLOOKUP(B102,Hilfstabellen!$A$1:$B$7,2)","v":"Freude am Leben"},{"$error":"#VALUE!"},null,null,null,null,null,null,null,null,null,null,null,null,null,null,null,null,"Ressourcen-Arbeit","Selbstwirksamkeit stärken","Stärken stärken","Vertrauen schaffen",null,null,"Wertschätzung leben",null,null,null,"                Ressourcen-Arbeit Selbstwirksamkeit stärken Stärken stärken Vertrauen schaffen   Wertschätzung leben   "]
["Warmer Rücken",2,{"$f":"VLOOKUP(B103,Hilfstabellen!$A$1:$B$7,2)","v":"Träume und Lebensmotive"},{"$error":"#VALUE!"},null,null,null,null,null,null,null,null,null,null,null,null,null,null,null,null,"Ressourcen-Arbeit",null,"Stärken stärken",null,null,null,"Wertschätzung leben",null,null,null,"                Ressourcen-Arbeit  Stärken stärken    Wertschätzung leben   "]
["Wertentwicklungs-Quadrat",2,{"$f":"VLOOKUP(B104,Hilfstabellen!$A$1:$B$7,2)","v":"Träume und Lebensmotive"},{"$error":"#VALUE!"},null,null,null,null,null,null,null,null,null,null,null,null,null,null,null,null,null,null,null,null,null,"Werte entwickeln",null,null,null,null,"                     Werte entwickeln    "]
["Wort für Wort",3,{"$f":"VLOOKUP(B105,Hilfstabellen!$A$1:$B$7,2)","v":"Leben bewegen"},{"$error":"#VALUE!"},null,null,null,null,null,null,null,null,null,null,null,"Kommunikation",null,null,null,null,null,null,null,null,null,null,null,null,null,null,"           Kommunikation              "]
["Worte schöpfen",6,{"$f":"VLOOKUP(B106,Hilfstabellen!$A$1:$B$7,2)","v":"Seelisches Wohlbefinden"},{"$error":"#VALUE!"},"Achtsamkeit",null,null,null,null,null,null,null,null,null,null,null,null,null,null,null,null,null,null,null,null,null,null,null,null,null,"Achtsamkeit                         "]
["Yoga",6,{"$f":"VLOOKUP(B107,Hilfstabellen!$A$1:$B$7,2)","v":"Seelisches Wohlbefinden"},{"$error":"#VALUE!"},null,null,null,null,null,null,null,null,null,null,null,null,null,null,null,null,null,null,null,null,null,null,null,null,null,null,"                         "]
["Zeitmanagement",4,{"$f":"VLOOKUP(B108,Hilfstabellen!$A$1:$B$7,2)","v":"Gestaltungspotentiale nutzen"},{"$error":"#VALUE!"},null,null,null,null,null,null,null,null,null,"Handlungsziele",null,null,null,null,null,null,null,null,null,null,null,null,null,"Ziele erreichen",null,null,"         Handlungsziele              Ziele erreichen  "]
["Ziele im Raum",3,{"$f":"VLOOKUP(B109,Hilfstabellen!$A$1:$B$7,2)","v":"Leben bewegen"},{"$error":"#VALUE!"},null,null,null,null,null,null,null,null,null,null,null,null,null,null,null,null,null,null,null,null,null,null,null,"Ziele erreichen",null,null,"                       Ziele erreichen  "]
["Glückskreuz",1,{"$f":"VLOOKUP(B110,Hilfstabellen!$A$1:$B$7,2)","v":"Freude am Leben"},{"$f":"SEARCH(Suchkriterium,AE110)","v":{"$error":"#VALUE!"}},"Achtsamkeit",null,null,null,null,null,null,null,null,null,null,null,null,null,null,null,null,null,null,null,null,null,null,null,null,null,"Achtsamkeit                         "]
["Gefühlsmonster",1,{"$f":"VLOOKUP(B111,Hilfstabellen!$A$1:$B$7,2)","v":"Freude am Leben"},{"$error":"#VALUE!"},null,null,"Emotionen wahrnehmen und steuern",null,null,null,null,null,null,null,null,null,null,null,null,null,null,null,null,null,null,null,null,null,null,null,"  Emotionen wahrnehmen und steuern                       "]
["Emotions Kugellager",1,{"$f":"VLOOKUP(B112,Hilfstabellen!$A$1:$B$7,2)","v":"Freude am Leben"},{"$error":"#VALUE!"},null,null,"Emotionen wahrnehmen und steuern",null,null,null,null,null,null,null,null,null,null,null,null,null,null,null,null,null,null,null,null,null,null,null,"  Emotionen wahrnehmen und steuern                       "]
["Dankbarkeitstagebuch",1,{"$f":"VLOOKUP(B113,Hilfstabellen!$A$1:$B$7,2)","v":"Freude am Leben"},{"$error":"#VALUE!"},null,"Dankbarkeit",null,null,null,null,null,null,null,null,null,null,null,null,null,null,null,null,null,null,null,null,null,null,null,null," Dankbarkeit                        "]
["Emotions-Wetterbericht",1,{"$f":"VLOOKUP(B114,Hilfstabellen!$A$1:$B$7,2)","v":"Freude am Leben"},{"$error":"#VALUE!"},null,null,"Emotionen wahrnehmen und steuern",null,null,null,null,null,null,null,null,null,null,null,null,null,null,null,null,null,null,null,null,null,null,null,"  Emotionen wahrnehmen und steuern                       "]
["3:1 Fredrickson",1,{"$f":"VLOOKUP(B115,Hilfstabellen!$A$1:$B$7,2)","v":"Freude am Leben"},{"$error":"#VALUE!"},null,null,"Emotionen wahrnehmen und steuern",null,null,null,"Fehlerkultur",null,null,null,null,null,null,null,null,null,null,null,null,null,null,null,null,null,null,null,"  Emotionen wahrnehmen und steuern    Fehlerkultur                   "]
["Tetralemma",3,{"$f":"VLOOKUP(B116,Hilfstabellen!$A$1:$B$7,2)","v":"Leben bewegen"},{"$error":"#VALUE!"},null,null,null,null,null,"Entscheiden",null,null,null,null,null,null,null,null,null,null,null,null,null,null,null,null,null,null,null,null,"     Entscheiden                    "]
["Entscheidungsrezepte",3,{"$f":"VLOOKUP(B117,Hilfstabellen!$A$1:$B$7,2)","v":"Leben bewegen"},{"$error":"#VALUE!"},null,null,null,null,null,"Entscheiden",null,null,null,null,null,null,null,null,null,null,null,null,null,null,null,null,null,null,null,null,"     Entscheiden                    "]
["Samurai",null,{"$f":"VLOOKUP(B118,Hilfstabellen!$A$1:$B$7,2)","v":{"$error":"#N/A"}},{"$error":"#VALUE!"},null,null,null,null,"Energetisieren",null,"Fehlerkultur",null,null,null,null,null,null,null,null,null,null,null,null,null,null,null,null,null,null,null,"    Energetisieren  Fehlerkultur                   "]
["Rotes Sofa",null,{"$f":"VLOOKUP(B119,Hilfstabellen!$A$1:$B$7,2)","v":{"$error":"#N/A"}},8,null,null,null,null,null,null,null,"Gruppenenergie \nstärken",null,null,"Kennenlernen",null,null,null,null,null,null,null,null,null,null,null,null,null,null,null,"       Gruppenenergie \nstärken   Kennenlernen               "]
["Pomodoro",null,{"$f":"VLOOKUP(B120,Hilfstabellen!$A$1:$B$7,2)","v":{"$error":"#N/A"}},{"$error":"#VALUE!"},null,null,null,null,null,null,null,null,null,"Handlungsziele",null,null,null,null,null,null,null,null,null,null,null,null,null,null,null,null,"         Handlungsziele                "]
["Pareto-Prinzip",null,{"$f":"VLOOKUP(B121,Hilfstabellen!$A$1:$B$7,2)","v":{"$error":"#N/A"}},{"$error":"#VALUE!"},null,null,null,null,null,null,null,null,null,"Handlungsziele",null,null,null,null,null,null,null,null,null,null,null,null,null,null,null,null,"         Handlungsziele                "]
["Eisenhower-Prinzip",null,{"$f":"VLOOKUP(B122,Hilfstabellen!$A$1:$B$7,2)","v":{"$error":"#N/A"}},{"$error":"#VALUE!"},null,null,null,null,null,null,null,null,null,"Handlungsziele",null,null,null,null,null,null,null,null,null,null,null,null,null,null,null,null,"         Handlungsziele                "]
["Räumliches Kennenlernen",null,{"$f":"VLOOKUP(B123,Hilfstabellen!$A$1:$B$7,2)","v":{"$error":"#N/A"}},{"$error":"#VALUE!"},null,null,null,null,null,null,null,null,null,null,"Kennenlernen",null,null,null,null,null,null,null,null,null,null,null,null,null,null,null,"          Kennenlernen               "]
["Rückenfühlen",null,{"$f":"VLOOKUP(B124,Hilfstabellen!$A$1:$B$7,2)","v":{"$error":"#N/A"}},{"$error":"#VALUE!"},null,null,null,null,null,null,null,null,null,null,"Kennenlernen",null,null,null,null,null,null,null,null,null,null,null,null,null,null,null,"          Kennenlernen               "]
["Mesotes",null,{"$f":"VLOOKUP(B125,Hilfstabellen!$A$1:$B$7,2)","v":{"$error":"#N/A"}},{"$error":"#VALUE!"},null,null,null,null,null,null,null,null,null,null,null,null,"Konflikte lösen",null,null,null,null,null,null,null,null,null,null,null,null,null,"            Konflikte lösen             "]
["Impro-Spiele",null,{"$f":"VLOOKUP(B126,Hilfstabellen!$A$1:$B$7,2)","v":{"$error":"#N/A"}},{"$error":"#VALUE!"},null,null,null,null,null,null,null,null,null,null,null,null,null,"Kreativität fördern",null,null,null,null,null,null,null,null,null,null,null,null,"             Kreativität fördern            "]

{"sheet":"Hilfstabellen","index":2,"n_rows":7,"n_cols":2,"rows_kept":7,"cut":false,"hidden":true,"merged":[]}
[1,"Freude am Leben"]
[2,"Träume und Lebensmotive"]
[3,"Leben bewegen"]
[4,"Gestaltungspotentiale nutzen"]
[5,"Abenteuer Alltag"]
[6,"Seelisches Wohlbefinden"]
["E","Energizer"]